[Event "FIDE WYCC Girls U18 2023"]
[Site "Montesilvano"]
[Date "2023.11.21"]
[Round "8.18"]
[White "Abrisqueta Zudaire, Leyre"]
[Black "Sosovickova, Jana"]
[Result "1-0"]
[ECO "D30"]
[WhiteElo "2137"]
[BlackElo "2013"]
[Annotator "NA RC"]
[PlyCount "51"]
[EventDate "2023.11.13"]
[EventType "swiss"]
[EventCountry "ITA"]
[SourceTitle "playchess.com"]
[Source "ChessBase"]
[SourceQuality "1"]
[TimeControl "40/5400+30:1800+30"]

1. d4 {[%emt 0:00:02]} d5 {[%emt 0:00:13]} 2. c4 {[%emt 0:00:06]} e6 {[%emt 0:00:38]} 3. Nf3 {[%emt 0:00:14]} Nf6 {[%emt 0:00:19]} 4. g3 {[%emt 0:00:08]} Bb4+ {[%emt 0:00:05]} 5. Nbd2 {[%emt 0:01:39]} dxc4 {[%emt 0:07:43]} 6. Bg2 {[%emt 0:00:13]} Nc6 {[%emt 0:01:38]} 7. O-O {[%emt 0:06:18]} c3 {[%emt 0:14:40]} 8. Nc4 {[%emt 0:08:45]} cxb2 {[%emt 0:02:14]} 9. Bxb2 {[%emt 0:00:11]} O-O {[%emt 0:00:24]} 10. Qc2 {[%emt 0:03:51]} Rb8 {[%emt 0:07:57]} 11. a3 {[%emt 0:08:11]} Be7 {[%emt 0:06:03]} 12. Rfd1 {[%emt 0:00:15]} Qe8 {[%emt 0:13:08]} 13. e4 {[%emt 0:13:55]} b5 {[%emt 0:10:32]} 14. Ne3 {[%emt 0:00:54]} Bb7 {[%emt 0:03:31]} 15. d5 {[%emt 0:03:36]} Na5 {[%emt 0:01:56]} 16. Qxc7 {[%emt 0:00:38]} Qd8 {[%emt 0:00:26]} 17. Qf4 {[%emt 0:00:56]} Nh5 {[%emt 0:06:02]} 18. Qg4 {[%emt 0:00:49]} Nf6 {[%emt 0:00:11]} 19. Bxf6 {[%emt 0:01:04]} Bxf6 {[%emt 0:00:03]} 20. e5 {[%emt 0:00:10]} exd5 {[%emt 0:02:00]} 21. exf6 {[%emt 0:00:27]} Qxf6 {[%emt 0:00:04]} 22. Qg5 {[%emt 0:01:36]} Qb2 {[%emt 0:03:45]} 23. Nd4 {[%emt 0:02:27]} h6 {[%emt 0:01:22]} 24. Qg4 {[%emt 0:00:31]} Bc8 {[%emt 0:02:27]} 25. Qf4 {[%emt 0:00:13]} Rb6 {[%emt 0:00:12]} 26. Nxd5 {[%emt 0:00:13]} 1-0

[Event "FIDE WYCC Girls U18 2023"]
[Site "Montesilvano"]
[Date "2023.11.21"]
[Round "8.19"]
[White "Striskova, Lucia"]
[Black "Swara Lakshmi S Nair"]
[Result "0-1"]
[ECO "B90"]
[WhiteElo "2039"]
[BlackElo "1659"]
[Annotator "NA RC"]
[PlyCount "100"]
[EventDate "2023.11.13"]
[EventType "swiss"]
[EventCountry "ITA"]
[SourceTitle "playchess.com"]
[Source "ChessBase"]
[SourceQuality "1"]
[TimeControl "40/5400+30:1800+30"]

1. e4 {[%emt 0:00:05]} c5 {[%emt 0:00:15]} 2. Nf3 {[%emt 0:00:20]} d6 {[%emt 0:00:08]} 3. d4 {[%emt 0:00:13]} cxd4 {[%emt 0:00:04]} 4. Nxd4 {[%emt 0:00:26]} Nf6 {[%emt 0:00:06]} 5. Nc3 {[%emt 0:00:18]} a6 {[%emt 0:00:07]} 6. Be3 {[%emt 0:00:34]} e5 {[%emt 0:00:21]} 7. Nb3 {[%emt 0:00:16]} Be6 {[%emt 0:00:16]} 8. f4 {[%emt 0:00:11]} exf4 {[%emt 0:00:21]} 9. Bxf4 {[%emt 0:00:09]} Nc6 {[%emt 0:00:12]} 10. Qe2 {[%emt 0:01:08]} Rc8 {[%emt 0:00:24]} 11. h3 {[%emt 0:00:12]} Nb4 {[%emt 0:00:11]} 12. a3 {[%emt 0:00:09]} Nh5 {[%emt 0:01:16]} 13. axb4 {[%emt 0:00:25]} Nxf4 {[%emt 0:00:07]} 14. Qf2 {[%emt 0:00:33]} g5 {[%emt 0:00:20]} 15. b5 {[%emt 0:00:15]} Bg7 {[%emt 0:01:19]} 16. Nd4 {[%emt 0:04:16]} a5 {[%emt 0:59:03]} 17. g3 {[%emt 0:01:28]} Ng6 {[%emt 0:03:44]} 18. Bg2 {[%emt 0:03:41]} Qf6 {[%emt 0:08:38]} 19. Qxf6 {[%emt 0:09:02]} Bxf6 {[%emt 0:00:12]} 20. Nxe6 {[%emt 0:00:07]} fxe6 {[%emt 0:06:21]} 21. Rxa5 {[%emt 0:04:24]} Bxc3+ {[%emt 0:04:08]} 22. bxc3 {[%emt 0:00:17]} Rxc3 {[%emt 0:00:56]} 23. e5 {[%emt 0:05:34]} d5 {[%emt 0:00:30]} 24. h4 {[%emt 0:06:57]} Ke7 25. Ra7 {[%emt 0:00:58]} Rb8 {[%emt 0:03:06]} 26. hxg5 {[%emt 0:00:12]} Nf8 {[%emt 0:00:04]} 27. Kd2 {[%emt 0:06:58]} Rxg3 {[%emt 0:00:09]} 28. Bf1 {[%emt 0:00:39]} Rxg5 {[%emt 0:01:12]} 29. Bd3 {[%emt 0:00:07]} h5 {[%emt 0:00:36]} 30. Be2 {[%emt 0:00:09]} Rxe5 {[%emt 0:00:11]} 31. Bxh5 {[%emt 0:00:15]} Kd6 {[%emt 0:02:21]} 32. Be2 {[%emt 0:00:50]} Nd7 {[%emt 0:00:09]} 33. Rh7 {[%emt 0:00:30]} Re4 {[%emt 0:01:37]} 34. Bd3 {[%emt 0:04:01]} Rg4 {[%emt 0:01:10]} 35. Be2 {[%emt 0:00:32]} Re4 {[%emt 0:00:27]} 36. Bd3 {[%emt 0:00:06]} Rg4 {[%emt 0:02:27]} 37. Be2 {[%emt 0:00:07]} Rb4 {[%emt 0:01:42]} 38. Kc3 {[%emt 0:00:56]} Rb1 {[%emt 0:01:25]} 39. Kd2 {[%emt 0:01:52]} Nc5 {[%emt 0:00:29]} 40. Ke3 {[%emt 0:00:00]} Rc8 {[%emt 0:00:00]} 41. Ra3 {[%emt 0:05:06]} Rg8 {[%emt 0:03:08]} 42. Rh3 {[%emt 0:00:29]} Rb4 {[%emt 0:01:04]} 43. c3 {[%emt 0:01:56]} Re4+ {[%emt 0:00:14]} 44. Kd2 {[%emt 0:01:32]} Rg2 {[%emt 0:01:18]} 45. Re3 {[%emt 0:00:08]} e5 {[%emt 0:02:58]} 46. Rxe4 {[%emt 0:04:01]} Nxe4+ {[%emt 0:00:03]} 47. Kd3 {[%emt 0:00:24]} Rg3+ {[%emt 0:00:46]} 48. Kc2 {[%emt 0:00:06]} d4 {[%emt 0:00:38]} 49. Ra7 {[%emt 0:00:42]} Rxc3+ {[%emt 0:00:18]} 50. Kd1 {[%emt 0:00:06]} Nc5 {[%emt 0:00:22]} 0-1

[Event "FIDE WYCC Girls U18 2023"]
[Site "Montesilvano"]
[Date "2023.11.21"]
[Round "8.20"]
[White "Belattar, Ines"]
[Black "Dakic, Marta"]
[Result "1/2-1/2"]
[ECO "A45"]
[WhiteElo "1623"]
[BlackElo "2013"]
[Annotator "NA RC"]
[PlyCount "93"]
[EventDate "2023.11.13"]
[EventType "swiss"]
[EventCountry "ITA"]
[SourceTitle "playchess.com"]
[Source "ChessBase"]
[SourceQuality "1"]
[TimeControl "40/5400+30:1800+30"]

1. d4 {[%emt 0:00:56]} Nf6 {[%emt 0:00:21]} 2. Bf4 {[%emt 0:00:24]} e6 {[%emt 0:00:21]} 3. e3 {[%emt 0:00:33]} c5 {[%emt 0:00:15]} 4. c3 {[%emt 0:00:21]} cxd4 {[%emt 0:00:31]} 5. cxd4 {[%emt 0:00:34]} Be7 {[%emt 0:02:48]} 6. Nc3 {[%emt 0:01:37]} Nc6 {[%emt 0:04:14]} 7. h3 {[%emt 0:08:36]} Qb6 {[%emt 0:02:50]} 8. Qc2 {[%emt 0:02:49]} Nb4 {[%emt 0:09:16]} 9. Qd2 {[%emt 0:11:47]} Nbd5 {[%emt 0:04:03]} 10. Be5 {[%emt 0:06:44]} Nxc3 {[%emt 0:00:25]} 11. bxc3 {[%emt 0:00:09]} Ne4 {[%emt 0:01:20]} 12. Qc2 {[%emt 0:06:47]} Nxc3 {[%emt 0:00:15]} 13. Bd3 {[%emt 0:08:41]} f6 {[%emt 0:06:59]} 14. Bg3 {[%emt 0:02:27]} Qa5 {[%emt 0:05:45]} 15. Kf1 {[%emt 0:01:19]} f5 {[%emt 0:00:29]} 16. Ne2 {[%emt 0:02:16]} Nxe2 {[%emt 0:01:42]} 17. Kxe2 {[%emt 0:00:44]} b6 {[%emt 0:01:27]} 18. Rhc1 {[%emt 0:08:11]} Ba6 {[%emt 0:01:03]} 19. Bxa6 {[%emt 0:04:00]} Qxa6+ {[%emt 0:00:05]} 20. Qd3 {[%emt 0:01:12]} Qxd3+ {[%emt 0:06:20]} 21. Kxd3 {[%emt 0:00:04]} Ba3 {[%emt 0:00:48]} 22. Rc7 {[%emt 0:01:12]} g5 {[%emt 0:03:05]} 23. Be5 {[%emt 0:02:10]} Rg8 {[%emt 0:00:19]} 24. Rb1 {[%emt 0:01:21]} Ke7 {[%emt 0:02:56]} 25. Rb3 {[%emt 0:03:24]} Bd6 {[%emt 0:00:09]} 26. Bxd6+ {[%emt 0:00:07]} Kxd6 {[%emt 0:00:04]} 27. Rbc3 {[%emt 0:00:04]} b5 {[%emt 0:07:27]} 28. R7c5 {[%emt 0:03:51]} b4 {[%emt 0:05:40]} 29. Rc1 {[%emt 0:01:50]} a5 {[%emt 0:02:39]} 30. g4 {[%emt 0:04:56]} Rgf8 {[%emt 0:02:55]} 31. gxf5 {[%emt 0:03:07]} exf5 {[%emt 0:00:31]} 32. Re5 {[%emt 0:00:41]} a4 {[%emt 0:06:40]} 33. Rcc5 {[%emt 0:00:27]} b3 {[%emt 0:04:04]} 34. axb3 {[%emt 0:02:39]} axb3 {[%emt 0:01:15]} 35. Red5+ {[%emt 0:00:17]} Ke7 {[%emt 0:01:21]} 36. Re5+ {[%emt 0:00:34]} Kd8 {[%emt 0:00:06]} 37. Rb5 {[%emt 0:00:26]} Rf6 {[%emt 0:06:56]} 38. Rxb3 {[%emt 0:03:28]} Ra2 {[%emt 0:00:09]} 39. Rb8+ {[%emt 0:01:33]} Kc7 {[%emt 0:00:05]} 40. Rh8 {[%emt 0:00:00]} h6 {[%emt 0:00:00]} 41. Rh7 {[%emt 0:03:41]} Rxf2 {[%emt 0:10:38]} 42. Rd5 {[%emt 0:00:07]} Rd6 {[%emt 0:03:24]} 43. Rxd6 {[%emt 0:01:25]} Kxd6 {[%emt 0:00:06]} 44. Rxh6+ {[%emt 0:00:05]} Ke7 {[%emt 0:00:09]} 45. Rh7+ {[%emt 0:02:16]} Ke6 {[%emt 0:00:39]} 46. Rh6+ {[%emt 0:01:08]} Kf7 {[%emt 0:03:45]} 47. Rh7+ {[%emt 0:02:10]} 1/2-1/2

[Event "FIDE WYCC Girls U18 2023"]
[Site "Montesilvano"]
[Date "2023.11.21"]
[Round "8.21"]
[White "Sovetbekova, Nurai"]
[Black "Largo, Franchesca"]
[Result "1-0"]
[ECO "E73"]
[WhiteElo "1801"]
[BlackElo "1658"]
[Annotator "NA RC"]
[PlyCount "83"]
[EventDate "2023.11.13"]
[EventType "swiss"]
[EventCountry "ITA"]
[SourceTitle "playchess.com"]
[Source "ChessBase"]
[SourceQuality "1"]
[TimeControl "40/5400+30:1800+30"]

1. d4 {[%emt 0:00:03]} Nf6 {[%emt 0:00:19]} 2. c4 {[%emt 0:00:16]} g6 {[%emt 0:00:35]} 3. Nc3 {[%emt 0:00:13]} Bg7 {[%emt 0:00:17]} 4. e4 {[%emt 0:00:07]} d6 {[%emt 0:00:27]} 5. Be2 {[%emt 0:00:14]} O-O {[%emt 0:00:45]} 6. Be3 {[%emt 0:00:09]} e5 {[%emt 0:03:38]} 7. d5 {[%emt 0:00:08]} a5 {[%emt 0:03:21]} 8. g4 {[%emt 0:03:42]} Na6 {[%emt 0:18:27]} 9. g5 {[%emt 0:05:42]} Ne8 {[%emt 0:04:51]} 10. h4 {[%emt 0:01:32]} f5 {[%emt 0:06:48]} 11. gxf6 {[%emt 0:04:17]} Nxf6 {[%emt 0:16:37]} 12. h5 {[%emt 0:20:24]} Nc5 {[%emt 0:06:10]} 13. hxg6 {[%emt 0:02:12]} hxg6 {[%emt 0:00:08]} 14. Qc2 {[%emt 0:07:13]} Ng4 {[%emt 0:12:52]} 15. Bxg4 {[%emt 0:02:32]} Bxg4 {[%emt 0:00:06]} 16. Nge2 {[%emt 0:00:29]} Bf3 {[%emt 0:00:40]} 17. Rh3 {[%emt 0:09:00]} g5 {[%emt 0:09:43]} 18. O-O-O {[%emt 0:18:38]} g4 {[%emt 0:00:19]} 19. Rh2 {[%emt 0:02:00]} Kf7 {[%emt 0:00:49]} 20. Rh5 {[%emt 0:03:55]} Ke8 {[%emt 0:07:11]} 21. Rg1 {[%emt 0:02:53]} Qf6 {[%emt 0:03:52]} 22. Ng3 {[%emt 0:01:48]} Rf7 {[%emt 0:02:05]} 23. Nf5 {[%emt 0:03:33]} Bf8 {[%emt 0:00:17]} 24. Ng3 {[%emt 0:04:34]} Kd7 {[%emt 0:01:14]} 25. Rf5 {[%emt 0:01:34]} Qg7 {[%emt 0:00:48]} 26. Na4 {[%emt 0:02:32]} Ra6 {[%emt 0:00:37]} 27. Nh5 {[%emt 0:01:08]} Qg6 {[%emt 0:00:10]} 28. Nxc5+ {[%emt 0:00:35]} dxc5 {[%emt 0:00:16]} 29. Rxe5 {[%emt 0:00:57]} Bh6 {[%emt 0:01:03]} 30. Qd2 {[%emt 0:00:54]} Qd6 {[%emt 0:00:29]} 31. Qc3 {[%emt 0:01:03]} Bxe3+ {[%emt 0:00:16]} 32. fxe3 {[%emt 0:00:08]} Qh6 {[%emt 0:00:20]} 33. Qd2 {[%emt 0:00:47]} Qh8 {[%emt 0:00:40]} 34. Rg5 {[%emt 0:00:45]} Rh6 {[%emt 0:00:23]} 35. Ng3 {[%emt 0:01:10]} Rh2 {[%emt 0:00:06]} 36. Qc3 {[%emt 0:00:04]} Qh6 {[%emt 0:00:27]} 37. Rf5 {[%emt 0:00:29]} Re7 {[%emt 0:01:18]} 38. e5 {[%emt 0:00:25]} Rh3 {[%emt 0:00:21]} 39. e6+ {[%emt 0:00:38]} Ke8 {[%emt 0:00:30]} 40. Rf6 {[%emt 0:00:00]} Qh8 {[%emt 0:00:00]} 41. Qxa5 {[%emt 0:08:13]} Reh7 {[%emt 0:06:54]} 42. Rxf3 {[%emt 0:10:38]} 1-0

[Event "FIDE WYCC Girls U18 2023"]
[Site "Montesilvano"]
[Date "2023.11.21"]
[Round "8.22"]
[White "Sasvatha A"]
[Black "Keerti Shree Reddy"]
[Result "1/2-1/2"]
[ECO "B28"]
[WhiteElo "1568"]
[BlackElo "1741"]
[Annotator "NA RC"]
[PlyCount "96"]
[EventDate "2023.11.13"]
[EventType "swiss"]
[EventCountry "ITA"]
[SourceTitle "playchess.com"]
[Source "ChessBase"]
[SourceQuality "1"]
[TimeControl "40/5400+30:1800+30"]

1. e4 {[%emt 0:00:32]} c5 {[%emt 0:00:34]} 2. Nf3 {[%emt 0:00:06]} a6 {[%emt 0:01:05]} 3. c4 {[%emt 0:01:36]} Nc6 {[%emt 0:00:27]} 4. d4 {[%emt 0:00:16]} cxd4 {[%emt 0:00:36]} 5. Nxd4 {[%emt 0:01:33]} Nf6 {[%emt 0:00:28]} 6. Nc3 {[%emt 0:00:16]} g6 {[%emt 0:01:32]} 7. Be3 {[%emt 0:01:14]} d6 {[%emt 0:01:38]} 8. Be2 {[%emt 0:00:43]} Bg7 {[%emt 0:00:05]} 9. O-O {[%emt 0:04:19]} O-O {[%emt 0:00:14]} 10. f3 {[%emt 0:01:22]} Nxd4 {[%emt 0:01:09]} 11. Bxd4 {[%emt 0:00:07]} Bd7 {[%emt 0:00:12]} 12. Qd2 {[%emt 0:01:12]} a5 {[%emt 0:00:34]} 13. b3 {[%emt 0:00:19]} Bc6 {[%emt 0:00:07]} 14. Kh1 {[%emt 0:00:54]} Nd7 {[%emt 0:00:25]} 15. Be3 {[%emt 0:00:25]} Nc5 {[%emt 0:03:40]} 16. Rad1 {[%emt 0:01:12]} Qb6 {[%emt 0:11:50]} 17. Nd5 {[%emt 0:05:15]} Bxd5 {[%emt 0:01:16]} 18. exd5 {[%emt 0:00:19]} Qb4 {[%emt 0:09:02]} 19. Qc2 {[%emt 0:12:26]} a4 {[%emt 0:03:50]} 20. Rb1 {[%emt 0:01:32]} axb3 {[%emt 0:02:50]} 21. axb3 {[%emt 0:00:13]} Rfc8 {[%emt 0:11:14]} 22. Bd2 {[%emt 0:07:25]} Qa3 {[%emt 0:04:24]} 23. b4 {[%emt 0:02:12]} Nd7 {[%emt 0:00:27]} 24. Rfc1 {[%emt 0:13:50]} Qa7 {[%emt 0:11:42]} 25. Qe4 {[%emt 0:03:48]} Qd4 {[%emt 0:07:05]} 26. Qxd4 {[%emt 0:06:11]} Bxd4 {[%emt 0:00:09]} 27. Bg5 {[%emt 0:00:54]} Ra2 {[%emt 0:05:02]} 28. Bf1 {[%emt 0:00:56]} f6 {[%emt 0:00:56]} 29. Bf4 {[%emt 0:02:19]} Kf7 {[%emt 0:03:31]} 30. Rd1 {[%emt 0:02:07]} Be5 {[%emt 0:06:24]} 31. Be3 {[%emt 0:00:33]} b6 {[%emt 0:01:20]} 32. f4 {[%emt 0:02:09]} Bc3 {[%emt 0:01:00]} 33. Rb3 {[%emt 0:04:13]} Ba1 {[%emt 0:02:01]} 34. Rbb1 {[%emt 0:05:29]} Rca8 {[%emt 0:01:53]} 35. Rdc1 {[%emt 0:05:12]} f5 {[%emt 0:01:58]} 36. Bg1 {[%emt 0:03:44]} R2a3 {[%emt 0:01:31]} 37. Be2 {[%emt 0:00:35]} Bc3 {[%emt 0:00:50]} 38. Rd1 {[%emt 0:01:15]} Ra2 {[%emt 0:01:12]} 39. Bf1 {[%emt 0:03:23]} Bd2 {[%emt 0:02:14]} 40. g3 {[%emt 0:00:00]} Bc3 {[%emt 0:00:00]} 41. Rb3 {[%emt 0:21:54]} Bg7 {[%emt 0:06:58]} 42. Bd3 {[%emt 0:02:26]} Rc8 {[%emt 0:04:20]} 43. Re1 {[%emt 0:01:29]} h5 {[%emt 0:07:30]} 44. h3 {[%emt 0:00:27]} Rca8 {[%emt 0:04:47]} 45. Bb1 {[%emt 0:02:17]} R2a3 {[%emt 0:01:21]} 46. Ree3 {[%emt 0:00:43]} Ra1 {[%emt 0:00:59]} 47. Re1 {[%emt 0:04:52]} R8a3 {[%emt 0:03:51]} 48. Ree3 {[%emt 0:02:31]} Ra8 {[%emt 0:02:20]} 1/2-1/2

[Event "FIDE WYCC Girls U18 2023"]
[Site "Montesilvano"]
[Date "2023.11.21"]
[Round "8.23"]
[White "Hoanca, Alexia-Ioana"]
[Black "O'Carroll, Om"]
[Result "0-1"]
[ECO "B62"]
[WhiteElo "1830"]
[BlackElo "1737"]
[Annotator "NA RC"]
[PlyCount "96"]
[EventDate "2023.11.13"]
[EventType "swiss"]
[EventCountry "ITA"]
[SourceTitle "playchess.com"]
[Source "ChessBase"]
[SourceQuality "1"]
[TimeControl "40/5400+30:1800+30"]

1. e4 {[%emt 0:00:04]} c5 {[%emt 0:00:04]} 2. Nf3 {[%emt 0:00:12]} d6 {[%emt 0:00:05]} 3. d4 {[%emt 0:00:19]} cxd4 {[%emt 0:00:08]} 4. Nxd4 {[%emt 0:00:06]} Nf6 {[%emt 0:00:05]} 5. Nc3 {[%emt 0:00:11]} Nc6 {[%emt 0:00:07]} 6. Bg5 {[%emt 0:00:24]} e6 {[%emt 0:00:32]} 7. Bb5 {[%emt 0:00:20]} Bd7 {[%emt 0:02:28]} 8. Qd3 {[%emt 0:01:06]} Nxd4 {[%emt 0:15:23]} 9. Bxd7+ {[%emt 0:00:50]} Qxd7 {[%emt 0:00:08]} 10. Qxd4 {[%emt 0:00:06]} Be7 {[%emt 0:00:17]} 11. O-O-O {[%emt 0:00:21]} Rc8 {[%emt 0:08:51]} 12. Bxf6 {[%emt 0:01:42]} Bxf6 {[%emt 0:11:33]} 13. Qxd6 {[%emt 0:02:05]} Qxd6 {[%emt 0:01:31]} 14. Rxd6 {[%emt 0:00:08]} Bxc3 {[%emt 0:00:16]} 15. bxc3 {[%emt 0:00:15]} Rxc3 {[%emt 0:00:16]} 16. Rhd1 {[%emt 0:00:33]} O-O {[%emt 0:02:50]} 17. Rd7 {[%emt 0:01:29]} Ra3 {[%emt 0:02:17]} 18. Kb2 {[%emt 0:08:59]} Ra4 {[%emt 0:00:52]} 19. Rxb7 {[%emt 0:00:40]} Rxe4 {[%emt 0:00:51]} 20. Rd2 {[%emt 0:05:11]} a5 {[%emt 0:02:41]} 21. f3 {[%emt 0:05:34]} Rc4 {[%emt 0:02:11]} 22. Kb3 {[%emt 0:01:50]} Rfc8 {[%emt 0:05:27]} 23. Rd8+ {[%emt 0:03:16]} Rxd8 {[%emt 0:00:11]} 24. Kxc4 {[%emt 0:00:04]} g6 {[%emt 0:04:48]} 25. Rb5 {[%emt 0:03:21]} Rd2 {[%emt 0:01:59]} 26. Kc3 {[%emt 0:02:09]} Rxg2 {[%emt 0:00:25]} 27. Rxa5 {[%emt 0:00:12]} Rxh2 {[%emt 0:00:32]} 28. Ra8+ {[%emt 0:00:37]} Kg7 {[%emt 0:00:07]} 29. a4 {[%emt 0:00:08]} Rf2 {[%emt 0:04:29]} 30. a5 {[%emt 0:02:10]} Rxf3+ {[%emt 0:00:21]} 31. Kb4 {[%emt 0:00:21]} Rf1 {[%emt 0:04:50]} 32. a6 {[%emt 0:02:04]} h5 {[%emt 0:01:53]} 33. Kc5 {[%emt 0:08:59]} h4 {[%emt 0:04:58]} 34. Rb8 {[%emt 0:00:20]} Ra1 {[%emt 0:01:55]} 35. Rb4 {[%emt 0:02:59]} Rxa6 {[%emt 0:03:38]} 36. Rxh4 {[%emt 0:00:10]} g5 {[%emt 0:00:39]} 37. Rg4 {[%emt 0:02:48]} Kg6 {[%emt 0:00:40]} 38. c4 {[%emt 0:00:17]} f5 {[%emt 0:01:07]} 39. Rg1 {[%emt 0:00:23]} f4 {[%emt 0:01:29]} 40. Kb5 {[%emt 0:00:00]} Ra8 {[%emt 0:00:00]} 41. c5 {[%emt 0:02:54]} e5 {[%emt 0:08:04]} 42. Kc6 {[%emt 0:00:30]} e4 {[%emt 0:01:14]} 43. Kb7 {[%emt 0:00:23]} Re8 {[%emt 0:01:16]} 44. c6 {[%emt 0:01:20]} e3 {[%emt 0:00:39]} 45. c7 {[%emt 0:01:13]} Re7 {[%emt 0:00:46]} 46. Kc6 {[%emt 0:00:14]} Rxc7+ {[%emt 0:00:16]} 47. Kxc7 {[%emt 0:00:05]} f3 {[%emt 0:00:09]} 48. Kd6 {[%emt 0:00:11]} f2 {[%emt 0:00:32]} 0-1

[Event "FIDE WYCC Girls U18 2023"]
[Site "Montesilvano"]
[Date "2023.11.21"]
[Round "8.24"]
[White "Stagno, Milena"]
[Black "Menon, Gauri"]
[Result "0-1"]
[ECO "B22"]
[WhiteElo "1444"]
[BlackElo "1821"]
[Annotator "NA RC"]
[PlyCount "80"]
[EventDate "2023.11.13"]
[EventType "swiss"]
[EventCountry "ITA"]
[SourceTitle "playchess.com"]
[Source "ChessBase"]
[SourceQuality "1"]
[TimeControl "40/5400+30:1800+30"]

1. e4 {[%emt 0:00:03]} c5 {[%emt 0:00:06]} 2. c3 {[%emt 0:00:13]} d5 {[%emt 0:00:07]} 3. exd5 {[%emt 0:00:28]} Nf6 {[%emt 0:00:09]} 4. d4 {[%emt 0:00:33]} Nxd5 {[%emt 0:00:26]} 5. Nf3 {[%emt 0:02:36]} cxd4 {[%emt 0:00:31]} 6. cxd4 {[%emt 0:01:14]} g6 {[%emt 0:00:46]} 7. Nc3 {[%emt 0:02:25]} Nxc3 {[%emt 0:00:36]} 8. bxc3 {[%emt 0:00:34]} Bg7 {[%emt 0:00:16]} 9. Bf4 {[%emt 0:05:48]} O-O {[%emt 0:06:58]} 10. Qd2 {[%emt 0:12:36]} Qb6 {[%emt 0:09:13]} 11. Be2 {[%emt 0:07:56]} Be6 {[%emt 0:01:53]} 12. O-O {[%emt 0:01:20]} Rc8 {[%emt 0:05:10]} 13. Be5 {[%emt 0:07:13]} Bxe5 {[%emt 0:10:53]} 14. Nxe5 {[%emt 0:00:20]} Qa5 {[%emt 0:00:38]} 15. Bf3 {[%emt 0:02:15]} Nc6 {[%emt 0:10:47]} 16. Nxc6 {[%emt 0:02:19]} bxc6 {[%emt 0:00:28]} 17. Qe3 {[%emt 0:06:44]} Rc7 {[%emt 0:11:31]} 18. Rfc1 {[%emt 0:04:42]} Bd5 {[%emt 0:00:47]} 19. c4 {[%emt 0:02:03]} Bxf3 {[%emt 0:00:16]} 20. Qxf3 {[%emt 0:00:39]} Rd8 {[%emt 0:03:03]} 21. Rd1 {[%emt 0:02:20]} Qa6 {[%emt 0:12:35]} 22. Qb3 {[%emt 0:14:22]} Rb7 {[%emt 0:05:52]} 23. Qc3 {[%emt 0:03:27]} Rbd7 {[%emt 0:00:07]} 24. f4 {[%emt 0:03:10]} c5 {[%emt 0:07:10]} 25. d5 {[%emt 0:01:09]} e6 {[%emt 0:00:14]} 26. Qb3 {[%emt 0:02:52]} exd5 {[%emt 0:00:54]} 27. cxd5 {[%emt 0:00:08]} c4 {[%emt 0:02:25]} 28. Qf3 {[%emt 0:02:28]} Qb6+ {[%emt 0:00:16]} 29. Kf1 {[%emt 0:00:43]} Qc5 {[%emt 0:00:08]} 30. Rac1 {[%emt 0:01:04]} Rxd5 {[%emt 0:00:13]} 31. Rxd5 {[%emt 0:00:19]} Rxd5 {[%emt 0:00:09]} 32. Qc3 {[%emt 0:01:11]} Rd4 {[%emt 0:00:29]} 33. g3 {[%emt 0:00:13]} Qd5 {[%emt 0:00:17]} 34. Rc2 {[%emt 0:06:22]} Qh1+ {[%emt 0:00:17]} 35. Kf2 {[%emt 0:00:51]} Qxh2+ {[%emt 0:00:14]} 36. Ke1 {[%emt 0:00:41]} Qg1+ {[%emt 0:00:19]} 37. Ke2 {[%emt 0:00:07]} Qg2+ {[%emt 0:00:17]} 38. Ke1 {[%emt 0:00:08]} Re4+ {[%emt 0:01:33]} 39. Kd1 {[%emt 0:01:21]} Qf1+ {[%emt 0:00:08]} 40. Kd2 {[%emt 0:00:00]} Qe1# 0-1

[Event "FIDE WYCC Girls U18 2023"]
[Site "Montesilvano"]
[Date "2023.11.21"]
[Round "8.25"]
[White "Latifah, Darmaki"]
[Black "Alexandrova, Angelina"]
[Result "1/2-1/2"]
[ECO "C00"]
[WhiteElo "1367"]
[BlackElo "1814"]
[Annotator "NA RC"]
[PlyCount "66"]
[EventDate "2023.11.13"]
[EventType "swiss"]
[EventCountry "ITA"]
[SourceTitle "playchess.com"]
[Source "ChessBase"]
[SourceQuality "1"]
[TimeControl "40/5400+30:1800+30"]

1. e4 {[%emt 0:00:02]} e6 {[%emt 0:00:02]} 2. d4 {[%emt 0:00:08]} d5 {[%emt 0:00:04]} 3. Bd3 {[%emt 0:00:04]} dxe4 {[%emt 0:00:07]} 4. Bxe4 {[%emt 0:00:08]} Nf6 {[%emt 0:00:09]} 5. Bf3 {[%emt 0:00:05]} c5 {[%emt 0:00:10]} 6. Ne2 {[%emt 0:00:12]} Nc6 {[%emt 0:00:05]} 7. Be3 {[%emt 0:00:22]} cxd4 {[%emt 0:00:06]} 8. Nxd4 {[%emt 0:00:13]} Ne5 {[%emt 0:00:09]} 9. Nc3 {[%emt 0:00:42]} Be7 {[%emt 0:01:31]} 10. Ndb5 {[%emt 0:09:45]} O-O {[%emt 0:06:09]} 11. Qxd8 {[%emt 0:02:58]} Nxf3+ {[%emt 0:05:59]} 12. gxf3 {[%emt 0:01:00]} Rxd8 {[%emt 0:08:52]} 13. Nc7 {[%emt 0:02:45]} Bd7 {[%emt 0:00:51]} 14. Nxa8 {[%emt 0:00:10]} Rxa8 {[%emt 0:00:02]} 15. Ke2 {[%emt 0:16:45]} Bb4 {[%emt 0:01:14]} 16. Bd4 {[%emt 0:19:31]} Rc8 {[%emt 0:04:43]} 17. Rhg1 {[%emt 0:14:27]} Kf8 {[%emt 0:09:54]} 18. a3 {[%emt 0:03:52]} Bd6 {[%emt 0:01:05]} 19. h4 {[%emt 0:10:29]} b6 {[%emt 0:02:04]} 20. Rad1 {[%emt 0:04:35]} e5 {[%emt 0:02:20]} 21. Bxb6 {[%emt 0:06:50]} Bxa3 {[%emt 0:00:13]} 22. bxa3 {[%emt 0:00:36]} axb6 {[%emt 0:01:55]} 23. Kd2 {[%emt 0:04:09]} Rc4 {[%emt 0:02:20]} 24. Rb1 {[%emt 0:00:50]} Rc6 {[%emt 0:01:20]} 25. Rge1 {[%emt 0:01:17]} Re6 {[%emt 0:00:25]} 26. Rb4 {[%emt 0:00:31]} Ke7 {[%emt 0:01:24]} 27. Reb1 {[%emt 0:00:18]} Rd6+ {[%emt 0:01:22]} 28. Ke2 {[%emt 0:00:57]} Rc6 {[%emt 0:00:19]} 29. Kd2 {[%emt 0:00:25]} Rd6+ {[%emt 0:00:24]} 30. Kc1 {[%emt 0:00:35]} Rc6 {[%emt 0:02:42]} 31. Kd2 {[%emt 0:00:22]} Rd6+ {[%emt 0:00:04]} 32. Ke3 {[%emt 0:00:30]} Rc6 33. Kd2 Rd6+ 1/2-1/2